[Event "Titled Tuesday Blitz December 06 Late 2022"]
[White "Simonovic, Miroslav"]
[Black "Arbunic Castro, Giovanna"]
[WhiteFideId "919152"]
[BlackFideId "3400549"]
[WhiteElo "2057"]
[BlackElo "1931"]
[Result "1-0"]
[Round "07"]
[TimeControl "180+1"]
[Date "2022.12.07"]
[WhiteClock "0:01:17"]
[BlackClock "0:00:08"]

1. d4 {[%clk 0:03:00]}  Nf6 {[%clk 0:02:57]} 2. Bg5 {[%clk 0:03:01]}  g6 {[%clk 0:02:56]} 3. Bxf6 {[%clk 0:03:01]}  exf6 {[%clk 0:02:55]} 4. c4 {[%clk 0:03:02]}  Bg7 {[%clk 0:02:55]} 5. Nc3 {[%clk 0:03:03]}  O-O {[%clk 0:02:54]} 6. g3 {[%clk 0:03:03]}  f5 {[%clk 0:02:53]} 7. e3 {[%clk 0:03:03]}  d6 {[%clk 0:02:34]} 8. Bg2 {[%clk 0:03:01]}  Nc6 {[%clk 0:02:31]} 9. Nge2 {[%clk 0:03:01]}  Na5 {[%clk 0:02:28]} 10. Qd3 {[%clk 0:02:56]}  c5 {[%clk 0:02:26]} 11. O-O {[%clk 0:02:51]}  Be6 {[%clk 0:02:22]} 12. Nd5 {[%clk 0:02:51]}  a6 {[%clk 0:02:11]} 13. a3 {[%clk 0:02:50]}  b5 {[%clk 0:02:03]} 14. b3 {[%clk 0:02:27]}  Rb8 {[%clk 0:01:50]} 15. Rab1 {[%clk 0:02:18]}  Qd7 {[%clk 0:01:38]} 16. Rfd1 {[%clk 0:02:13]}  bxc4 {[%clk 0:01:24]} 17. bxc4 {[%clk 0:02:10]}  Qa4 {[%clk 0:01:23]} 18. Rxb8 {[%clk 0:01:54]}  Rxb8 {[%clk 0:01:20]} 19. Ne7+ {[%clk 0:01:53]}  Kh8 {[%clk 0:01:17]} 20. d5 {[%clk 0:01:53]}  Bd7 {[%clk 0:01:04]} 21. Rb1 {[%clk 0:01:48]}  Re8 {[%clk 0:00:32]} 22. Nc6 {[%clk 0:01:45]}  Nxc6 {[%clk 0:00:29]} 23. dxc6 {[%clk 0:01:45]}  Bxc6 {[%clk 0:00:29]} 24. Rb6 {[%clk 0:01:35]}  Bxg2 {[%clk 0:00:19]} 25. Kxg2 {[%clk 0:01:36]}  Be5 {[%clk 0:00:14]} 26. Qd5 {[%clk 0:01:28]}  Kg8 {[%clk 0:00:11]} 27. Rb7 {[%clk 0:01:19]}  Qxa3 {[%clk 0:00:08]} 28. Qxf7+ {[%clk 0:01:17]} 1-0


[Site "https://www.chess.com"]

[Event "Titled Tuesday Blitz December 06 Late 2022"]
[White "Sivakumar, Shaaketh"]
[Black "Rosen, Eric"]
[WhiteFideId "30940176"]
[BlackFideId "2032562"]
[WhiteElo "2174"]
[BlackElo "2362"]
[Result "1-0"]
[Round "07"]
[TimeControl "180+1"]
[Date "2022.12.07"]
[WhiteClock "0:00:13"]
[BlackClock "0:00:01"]

1. e4 {[%clk 0:03:00]}  e5 {[%clk 0:02:58]} 2. Nf3 {[%clk 0:03:00]}  Nf6 {[%clk 0:02:58]} 3. Nc3 {[%clk 0:02:58]}  Bc5 {[%clk 0:02:57]} 4. Bc4 {[%clk 0:02:57]}  Nc6 {[%clk 0:02:54]} 5. O-O {[%clk 0:02:57]}  d6 {[%clk 0:02:54]} 6. Na4 {[%clk 0:02:56]}  Bb6 {[%clk 0:02:28]} 7. Nxb6 {[%clk 0:02:48]}  axb6 {[%clk 0:02:28]} 8. d3 {[%clk 0:02:48]}  Na5 {[%clk 0:02:26]} 9. Bg5 {[%clk 0:02:39]}  h6 {[%clk 0:02:22]} 10. Bxf6 {[%clk 0:02:36]}  Qxf6 {[%clk 0:02:22]} 11. Bb3 {[%clk 0:02:34]}  Bg4 {[%clk 0:02:17]} 12. h3 {[%clk 0:02:03]}  Bxf3 {[%clk 0:02:17]} 13. Qxf3 {[%clk 0:02:03]}  Qxf3 {[%clk 0:02:16]} 14. gxf3 {[%clk 0:02:03]}  Ke7 {[%clk 0:01:59]} 15. Kg2 {[%clk 0:02:02]}  Ra7 {[%clk 0:01:44]} 16. Rae1 {[%clk 0:02:01]}  Nxb3 {[%clk 0:01:44]} 17. axb3 {[%clk 0:01:59]}  Ra2 {[%clk 0:01:44]} 18. Rb1 {[%clk 0:01:59]}  f5 {[%clk 0:01:31]} 19. Rfe1 {[%clk 0:01:50]}  f4 {[%clk 0:01:12]} 20. Kf1 {[%clk 0:01:48]}  Rf8 {[%clk 0:01:08]} 21. Ke2 {[%clk 0:01:44]}  Kf6 {[%clk 0:01:06]} 22. Kd2 {[%clk 0:01:37]}  Rfa8 {[%clk 0:01:01]} 23. h4 {[%clk 0:01:33]}  g5 {[%clk 0:00:56]} 24. hxg5+ {[%clk 0:01:19]}  hxg5 {[%clk 0:00:57]} 25. Rh1 {[%clk 0:01:14]}  Kg6 {[%clk 0:00:57]} 26. Rh2 {[%clk 0:01:12]}  Ra1 {[%clk 0:00:57]} 27. Rxa1 {[%clk 0:01:01]}  Rxa1 {[%clk 0:00:56]} 28. Rh8 {[%clk 0:01:02]}  Rf1 {[%clk 0:00:48]} 29. Ke2 {[%clk 0:01:01]}  Rc1 {[%clk 0:00:43]} 30. Kd2 {[%clk 0:01:01]}  Rf1 {[%clk 0:00:41]} 31. Ke2 {[%clk 0:01:00]}  Rb1 {[%clk 0:00:37]} 32. Rb8 {[%clk 0:00:55]}  Rxb2 {[%clk 0:00:20]} 33. Kd2 {[%clk 0:00:55]}  g4 {[%clk 0:00:07]} 34. fxg4 {[%clk 0:00:56]}  Kg5 {[%clk 0:00:07]} 35. Rxb7 {[%clk 0:00:56]}  Kxg4 {[%clk 0:00:06]} 36. Rxc7 {[%clk 0:00:56]}  Kf3 {[%clk 0:00:04]} 37. Rc6 {[%clk 0:00:56]}  Kxf2 {[%clk 0:00:04]} 38. Rxb6 {[%clk 0:00:56]}  Rb1 {[%clk 0:00:02]} 39. Rxd6 {[%clk 0:00:56]}  f3 {[%clk 0:00:02]} 40. Rg6 {[%clk 0:00:54]}  Kf1 {[%clk 0:00:02]} 41. d4 {[%clk 0:00:50]}  exd4 {[%clk 0:00:01]} 42. e5 {[%clk 0:00:51]}  f2 {[%clk 0:00:02]} 43. e6 {[%clk 0:00:51]}  Re1 {[%clk 0:00:02]} 44. b4 {[%clk 0:00:51]}  Re2+ {[%clk 0:00:03]} 45. Kd1 {[%clk 0:00:49]}  Re5 {[%clk 0:00:03]} 46. Kd2 {[%clk 0:00:40]}  Re2+ {[%clk 0:00:02]} 47. Kd1 {[%clk 0:00:37]}  Re1+ {[%clk 0:00:03]} 48. Kd2 {[%clk 0:00:37]}  Re5 {[%clk 0:00:04]} 49. Kd3 {[%clk 0:00:30]}  Ke1 {[%clk 0:00:04]} 50. Kxd4 {[%clk 0:00:29]}  f1=Q {[%clk 0:00:03]} 51. Kxe5 {[%clk 0:00:29]}  Qe2+ {[%clk 0:00:03]} 52. Kf6 {[%clk 0:00:30]}  Qf2+ {[%clk 0:00:03]} 53. Kg7 {[%clk 0:00:28]}  Qd4+ {[%clk 0:00:03]} 54. Kf7 {[%clk 0:00:26]}  Qc4 {[%clk 0:00:03]} 55. b5 {[%clk 0:00:25]}  Qd5 {[%clk 0:00:03]} 56. b6 {[%clk 0:00:23]}  Qc4 {[%clk 0:00:02]} 57. b7 {[%clk 0:00:23]}  Qf4+ {[%clk 0:00:02]} 58. Ke8 {[%clk 0:00:20]}  Qb8+ {[%clk 0:00:02]} 59. Kf7 {[%clk 0:00:21]}  Qxb7+ {[%clk 0:00:03]} 60. e7 {[%clk 0:00:21]}  Qd7 {[%clk 0:00:02]} 61. Re6+ {[%clk 0:00:20]}  Kd1 {[%clk 0:00:01]} 62. c4 {[%clk 0:00:14]}  Kc2 {[%clk 0:00:01]} 63. c5 {[%clk 0:00:14]}  Kc3 {[%clk 0:00:01]} 64. c6 {[%clk 0:00:14]}  Qc7 {[%clk 0:00:01]} 65. Kf8 {[%clk 0:00:13]}  Qf4+ {[%clk 0:00:01]} 66. Kg7 {[%clk 0:00:13]}  Qg4+ {[%clk 0:00:01]} 67. Kf7 {[%clk 0:00:14]}  Qf5+ {[%clk 0:00:01]} 68. Rf6 {[%clk 0:00:14]}  Qd5+ {[%clk 0:00:01]} 69. Kf8 {[%clk 0:00:15]}  Qc5 {[%clk 0:00:01]} 70. c7 {[%clk 0:00:13]} 1-0


[Site "https://www.chess.com"]

[Event "Titled Tuesday Blitz December 06 Late 2022"]
[White "Slovineanu"]
[Black "Walentukiewicz, Michal"]
[BlackFideId "1126903"]
[WhiteElo "2279"]
[BlackElo "2028"]
[Result "0-1"]
[Round "07"]
[TimeControl "180+1"]
[Date "2022.12.07"]
[WhiteClock "0:00:45"]
[BlackClock "0:02:10"]

1. d4 {[%clk 0:03:00]}  g6 {[%clk 0:02:56]} 2. e4 {[%clk 0:02:59]}  Bg7 {[%clk 0:02:54]} 3. Nc3 {[%clk 0:02:59]}  c5 {[%clk 0:02:54]} 4. dxc5 {[%clk 0:02:58]}  Qa5 {[%clk 0:02:54]} 5. Nf3 {[%clk 0:02:15]}  Qxc5 {[%clk 0:02:53]} 6. Bd2 {[%clk 0:02:06]}  Nf6 {[%clk 0:02:53]} 7. Bd3 {[%clk 0:02:06]}  O-O {[%clk 0:02:52]} 8. O-O {[%clk 0:02:06]}  Nc6 {[%clk 0:02:52]} 9. a3 {[%clk 0:02:03]}  d6 {[%clk 0:02:45]} 10. h3 {[%clk 0:01:58]}  Qa5 {[%clk 0:02:44]} 11. Re1 {[%clk 0:01:53]}  a6 {[%clk 0:02:40]} 12. Nd5 {[%clk 0:01:40]}  Qd8 {[%clk 0:02:40]} 13. c3 {[%clk 0:01:37]}  Be6 {[%clk 0:02:38]} 14. Nxf6+ {[%clk 0:01:26]}  Bxf6 {[%clk 0:02:38]} 15. Bh6 {[%clk 0:01:26]}  Re8 {[%clk 0:02:37]} 16. Bc2 {[%clk 0:01:24]}  b5 {[%clk 0:02:35]} 17. Bb3 {[%clk 0:01:19]}  Bxb3 {[%clk 0:02:34]} 18. Qxb3 {[%clk 0:01:19]}  Na5 {[%clk 0:02:34]} 19. Qd5 {[%clk 0:01:16]}  Nc4 {[%clk 0:02:33]} 20. Re2 {[%clk 0:01:15]}  Qc7 {[%clk 0:02:29]} 21. a4 {[%clk 0:01:14]}  Rab8 {[%clk 0:02:27]} 22. Qd3 {[%clk 0:01:03]}  bxa4 {[%clk 0:02:23]} 23. Ra2 {[%clk 0:00:57]}  a3 {[%clk 0:02:18]} 24. bxa3 {[%clk 0:00:52]}  Ne5 {[%clk 0:02:15]} 25. Nxe5 {[%clk 0:00:50]}  Bxe5 {[%clk 0:02:16]} 26. c4 {[%clk 0:00:46]}  Rec8 {[%clk 0:02:15]} 27. Rec2 {[%clk 0:00:45]}  Rb1+ {[%clk 0:02:10]} 0-1


[Site "https://www.chess.com"]

[Event "Titled Tuesday Blitz December 06 Late 2022"]
[White "Souleidis, Georgios"]
[Black "Zhigalko, Sergei"]
[WhiteFideId "4206827"]
[BlackFideId "13502956"]
[WhiteElo "2401"]
[BlackElo "2662"]
[Result "0-1"]
[Round "07"]
[TimeControl "180+1"]
[Date "2022.12.06"]
[WhiteClock "0:00:27"]
[BlackClock "0:00:06"]

1. e4 {[%clk 0:03:00]}  c5 {[%clk 0:03:00]} 2. Nf3 {[%clk 0:02:56]}  Nc6 {[%clk 0:03:00]} 3. Bc4 {[%clk 0:02:56]}  Nf6 {[%clk 0:03:00]} 4. e5 {[%clk 0:02:49]}  d5 {[%clk 0:03:00]} 5. Bb5 {[%clk 0:02:45]}  Nd7 {[%clk 0:02:59]} 6. O-O {[%clk 0:02:35]}  e6 {[%clk 0:02:54]} 7. Re1 {[%clk 0:02:34]}  Qc7 {[%clk 0:02:48]} 8. c3 {[%clk 0:02:22]}  a6 {[%clk 0:02:40]} 9. Bxc6 {[%clk 0:02:16]}  Qxc6 {[%clk 0:02:40]} 10. d4 {[%clk 0:02:12]}  b6 {[%clk 0:02:29]} 11. h4 {[%clk 0:02:01]}  a5 {[%clk 0:02:28]} 12. h5 {[%clk 0:02:01]}  Ba6 {[%clk 0:02:27]} 13. h6 {[%clk 0:01:56]}  gxh6 {[%clk 0:02:22]} 14. Nbd2 {[%clk 0:01:53]}  Rg8 {[%clk 0:02:20]} 15. Nf1 {[%clk 0:01:52]}  O-O-O {[%clk 0:02:15]} 16. Ng3 {[%clk 0:01:52]}  Kb7 {[%clk 0:02:13]} 17. Be3 {[%clk 0:01:50]}  Be7 {[%clk 0:02:09]} 18. Qd2 {[%clk 0:01:43]}  Rg6 {[%clk 0:02:08]} 19. Bxh6 {[%clk 0:01:39]}  Rdg8 {[%clk 0:02:07]} 20. Bf4 {[%clk 0:01:36]}  h5 {[%clk 0:02:06]} 21. Nxh5 {[%clk 0:01:07]}  Rxg2+ {[%clk 0:02:01]} 22. Kh1 {[%clk 0:01:07]}  R2g6 {[%clk 0:01:53]} 23. Ng3 {[%clk 0:01:05]}  Rg4 {[%clk 0:01:41]} 24. Kg2 {[%clk 0:01:01]}  Nf8 {[%clk 0:01:41]} 25. Rh1 {[%clk 0:00:56]}  Ng6 {[%clk 0:01:40]} 26. Be3 {[%clk 0:00:53]}  Nh4+ {[%clk 0:01:37]} 27. Nxh4 {[%clk 0:00:52]}  Bxh4 {[%clk 0:01:38]} 28. Rh3 {[%clk 0:00:49]}  Qb5 {[%clk 0:00:31]} 29. Rah1 {[%clk 0:00:48]}  Bxg3 {[%clk 0:00:30]} 30. Rxg3 {[%clk 0:00:48]}  a4 {[%clk 0:00:29]} 31. Rh7 {[%clk 0:00:46]}  Qf1+ {[%clk 0:00:29]} 32. Kh2 {[%clk 0:00:43]}  Rxg3 {[%clk 0:00:22]} 33. fxg3 {[%clk 0:00:44]}  Be2 {[%clk 0:00:22]} 34. dxc5 {[%clk 0:00:28]}  Bf3 {[%clk 0:00:16]} 35. Bg1 {[%clk 0:00:28]}  Be4 {[%clk 0:00:05]} 36. Qf2 {[%clk 0:00:26]}  Qxf2+ {[%clk 0:00:05]} 37. Bxf2 {[%clk 0:00:27]}  Bxh7 {[%clk 0:00:06]} 0-1


[Site "https://www.chess.com"]

[Event "Titled Tuesday Blitz December 06 Late 2022"]
[White "Suder, Jakub"]
[Black "Da Silva Junior, Sediney Mari"]
[WhiteFideId "1195310"]
[BlackFideId "2132079"]
[WhiteElo "2245"]
[BlackElo "1996"]
[Result "0-1"]
[Round "07"]
[TimeControl "180+1"]
[Date "2022.12.07"]
[WhiteClock "0:00:03"]
[BlackClock "0:00:01"]

1. d4 {[%clk 0:03:00]}  e6 {[%clk 0:03:00]} 2. c4 {[%clk 0:03:00]}  Nf6 {[%clk 0:03:00]} 3. Nc3 {[%clk 0:03:00]}  Bb4 {[%clk 0:03:00]} 4. f3 {[%clk 0:03:00]}  d5 {[%clk 0:02:54]} 5. a3 {[%clk 0:02:56]}  Bxc3+ {[%clk 0:02:54]} 6. bxc3 {[%clk 0:02:56]}  O-O {[%clk 0:02:52]} 7. cxd5 {[%clk 0:02:48]}  exd5 {[%clk 0:02:53]} 8. e3 {[%clk 0:02:47]}  Nh5 {[%clk 0:02:50]} 9. Ne2 {[%clk 0:02:19]}  Nc6 {[%clk 0:02:49]} 10. g3 {[%clk 0:02:05]}  Re8 {[%clk 0:02:48]} 11. Bg2 {[%clk 0:02:05]}  Na5 {[%clk 0:02:45]} 12. O-O {[%clk 0:02:04]}  Nc4 {[%clk 0:02:46]} 13. e4 {[%clk 0:02:04]}  Qe7 {[%clk 0:02:42]} 14. e5 {[%clk 0:02:03]}  f6 {[%clk 0:02:31]} 15. g4 {[%clk 0:02:01]}  fxe5 {[%clk 0:02:29]} 16. gxh5 {[%clk 0:02:01]}  exd4 {[%clk 0:02:29]} 17. Nxd4 {[%clk 0:01:54]}  Qh4 {[%clk 0:02:28]} 18. Nb5 {[%clk 0:01:48]}  Qd8 {[%clk 0:02:25]} 19. Bf4 {[%clk 0:01:39]}  Ne3 {[%clk 0:02:22]} 20. Bxe3 {[%clk 0:01:37]}  Rxe3 {[%clk 0:02:23]} 21. h6 {[%clk 0:01:33]}  a6 {[%clk 0:02:21]} 22. Qd4 {[%clk 0:01:08]}  Re7 {[%clk 0:02:06]} 23. Rae1 {[%clk 0:01:05]}  axb5 {[%clk 0:02:03]} 24. Qh4 {[%clk 0:00:58]}  Rd7 {[%clk 0:01:43]} 25. Qh5 {[%clk 0:00:43]}  g6 {[%clk 0:01:10]} 26. Qe5 {[%clk 0:00:42]}  Rf7 {[%clk 0:01:07]} 27. f4 {[%clk 0:00:29]}  c6 {[%clk 0:01:03]} 28. Rf3 {[%clk 0:00:15]}  Bf5 {[%clk 0:01:01]} 29. Bh3 {[%clk 0:00:12]}  Bxh3 {[%clk 0:00:56]} 30. Rxh3 {[%clk 0:00:10]}  Rxa3 {[%clk 0:00:56]} 31. Rg3 {[%clk 0:00:09]}  Qf6 {[%clk 0:00:47]} 32. Qb8+ {[%clk 0:00:02]}  Rf8 {[%clk 0:00:35]} 33. Qc7 {[%clk 0:00:02]}  Rxc3 {[%clk 0:00:34]} 34. Re7 {[%clk 0:00:02]}  Rc1+ {[%clk 0:00:20]} 35. Kg2 {[%clk 0:00:02]}  Rc2+ {[%clk 0:00:20]} 36. Kg1 {[%clk 0:00:02]}  Rc1+ {[%clk 0:00:20]} 37. Kg2 {[%clk 0:00:03]}  Rc2+ {[%clk 0:00:20]} 38. Kg1 {[%clk 0:00:03]}  Qd4+ {[%clk 0:00:06]} 39. Rge3 {[%clk 0:00:02]}  Qd1+ {[%clk 0:00:03]} 40. Re1 {[%clk 0:00:02]}  Qg4+ {[%clk 0:00:04]} 41. Kf1 {[%clk 0:00:03]}  Qf3+ {[%clk 0:00:01]} 42. Kg1 {[%clk 0:00:03]}  Qg4+ {[%clk 0:00:01]} 43. Kf1 {[%clk 0:00:03]}  Qg2# {[%clk 0:00:01]} 0-1


[Site "https://www.chess.com"]

[Event "Titled Tuesday Blitz December 06 Late 2022"]
[White "Tomaszewski, Kacper"]
[Black "O`Gorman, Tom"]
[WhiteFideId "1127373"]
[BlackFideId "2508249"]
[WhiteElo "2211"]
[BlackElo "2271"]
[Result "0-1"]
[Round "07"]
[TimeControl "180+1"]
[Date "2022.12.07"]
[WhiteClock "0:00:55"]
[BlackClock "0:01:39"]

1. Nf3 {[%clk 0:03:00]}  Nf6 {[%clk 0:02:57]} 2. c4 {[%clk 0:03:01]}  g6 {[%clk 0:02:56]} 3. Nc3 {[%clk 0:03:01]}  Bg7 {[%clk 0:02:56]} 4. e4 {[%clk 0:03:00]}  d6 {[%clk 0:02:57]} 5. d4 {[%clk 0:03:01]}  O-O {[%clk 0:02:57]} 6. Be2 {[%clk 0:03:01]}  e5 {[%clk 0:02:57]} 7. dxe5 {[%clk 0:03:02]}  dxe5 {[%clk 0:02:57]} 8. Qxd8 {[%clk 0:03:01]}  Rxd8 {[%clk 0:02:58]} 9. Bg5 {[%clk 0:03:00]}  Re8 {[%clk 0:02:58]} 10. Nd5 {[%clk 0:03:00]}  Nxd5 {[%clk 0:02:58]} 11. cxd5 {[%clk 0:03:01]}  c6 {[%clk 0:02:58]} 12. Bc4 {[%clk 0:03:01]}  cxd5 {[%clk 0:02:58]} 13. Bxd5 {[%clk 0:03:02]}  Nd7 {[%clk 0:02:58]} 14. Nd2 {[%clk 0:02:58]}  Nb6 {[%clk 0:02:57]} 15. Bb3 {[%clk 0:02:58]}  Be6 {[%clk 0:02:56]} 16. Be3 {[%clk 0:02:41]}  Bf8 {[%clk 0:02:52]} 17. Rc1 {[%clk 0:02:37]}  Bxb3 {[%clk 0:02:25]} 18. Nxb3 {[%clk 0:02:33]}  Rac8 {[%clk 0:02:24]} 19. Bxb6 {[%clk 0:02:21]}  axb6 {[%clk 0:02:23]} 20. Ke2 {[%clk 0:02:20]}  Bh6 {[%clk 0:02:19]} 21. Rxc8 {[%clk 0:02:15]}  Rxc8 {[%clk 0:02:20]} 22. Kd3 {[%clk 0:02:12]}  Kf8 {[%clk 0:02:13]} 23. Rd1 {[%clk 0:02:00]}  Ke7 {[%clk 0:02:11]} 24. g4 {[%clk 0:01:56]}  Bf4 {[%clk 0:02:08]} 25. h3 {[%clk 0:01:55]}  Kf6 {[%clk 0:02:04]} 26. f3 {[%clk 0:01:51]}  Kg5 {[%clk 0:02:02]} 27. h4+ {[%clk 0:01:37]}  Kxh4 {[%clk 0:01:54]} 28. Rh1+ {[%clk 0:01:37]}  Kg3 {[%clk 0:01:55]} 29. Rxh7 {[%clk 0:01:36]}  Rc7 {[%clk 0:01:54]} 30. Ke2 {[%clk 0:01:22]}  Rc2+ {[%clk 0:01:53]} 31. Kd3 {[%clk 0:01:21]}  Rxb2 {[%clk 0:01:52]} 32. Rxf7 {[%clk 0:01:19]}  Rxa2 {[%clk 0:01:46]} 33. Rxb7 {[%clk 0:01:19]}  Kxf3 {[%clk 0:01:46]} 34. Rxb6 {[%clk 0:01:17]}  g5 {[%clk 0:01:43]} 35. Nc5 {[%clk 0:01:02]}  Kxg4 {[%clk 0:01:40]} 36. Nd7 {[%clk 0:00:55]}  Rd2+ {[%clk 0:01:39]} 0-1


[Site "https://www.chess.com"]

[Event "Titled Tuesday Blitz December 06 Late 2022"]
[White "Toncheva, Nadya"]
[Black "Rodriguez Santiago, Jaime"]
[WhiteFideId "2924056"]
[BlackFideId "3100898"]
[WhiteElo "2101"]
[BlackElo "2025"]
[Result "1-0"]
[Round "07"]
[TimeControl "180+1"]
[Date "2022.12.07"]
[WhiteClock "0:00:07"]
[BlackClock "0:00:25"]

1. d4 {[%clk 0:03:00]}  Nf6 {[%clk 0:02:59]} 2. c4 {[%clk 0:03:01]}  e6 {[%clk 0:02:58]} 3. Nc3 {[%clk 0:02:59]}  d5 {[%clk 0:02:57]} 4. cxd5 {[%clk 0:02:58]}  Nxd5 {[%clk 0:02:57]} 5. Bd2 {[%clk 0:02:56]}  c5 {[%clk 0:02:55]} 6. Nf3 {[%clk 0:02:33]}  Nc6 {[%clk 0:02:54]} 7. e4 {[%clk 0:02:29]}  Nxc3 {[%clk 0:02:53]} 8. Bxc3 {[%clk 0:02:29]}  cxd4 {[%clk 0:02:52]} 9. Nxd4 {[%clk 0:02:29]}  Nxd4 {[%clk 0:02:49]} 10. Qxd4 {[%clk 0:02:30]}  Qxd4 {[%clk 0:02:46]} 11. Bxd4 {[%clk 0:02:30]}  Bb4+ {[%clk 0:02:46]} 12. Ke2 {[%clk 0:02:21]}  O-O {[%clk 0:02:30]} 13. Ke3 {[%clk 0:02:00]}  b6 {[%clk 0:02:20]} 14. a3 {[%clk 0:01:53]}  Be7 {[%clk 0:02:18]} 15. Rc1 {[%clk 0:01:41]}  Rd8 {[%clk 0:02:17]} 16. f4 {[%clk 0:01:23]}  Bd7 {[%clk 0:01:54]} 17. Be2 {[%clk 0:01:18]}  Rac8 {[%clk 0:01:52]} 18. Ba6 {[%clk 0:01:04]}  Rc6 {[%clk 0:01:33]} 19. Rxc6 {[%clk 0:00:59]}  Bxc6 {[%clk 0:01:32]} 20. Rc1 {[%clk 0:00:59]}  Be8 {[%clk 0:01:03]} 21. Rc7 {[%clk 0:00:41]}  Bd6 {[%clk 0:00:56]} 22. Rxa7 {[%clk 0:00:31]}  Kf8 {[%clk 0:00:55]} 23. Bxb6 {[%clk 0:00:24]}  Rb8 {[%clk 0:00:54]} 24. Bd4 {[%clk 0:00:23]}  Rb3+ {[%clk 0:00:52]} 25. Ke2 {[%clk 0:00:18]}  Bxf4 {[%clk 0:00:50]} 26. Bc5+ {[%clk 0:00:18]}  Kg8 {[%clk 0:00:47]} 27. Bd4 {[%clk 0:00:16]}  h5 {[%clk 0:00:46]} 28. Bc4 {[%clk 0:00:16]}  Rb8 {[%clk 0:00:44]} 29. b4 {[%clk 0:00:16]}  Bxh2 {[%clk 0:00:43]} 30. Ra5 {[%clk 0:00:10]}  g6 {[%clk 0:00:39]} 31. Be5 {[%clk 0:00:09]}  Bxe5 {[%clk 0:00:38]} 32. Rxe5 {[%clk 0:00:10]}  Ra8 {[%clk 0:00:38]} 33. Rc5 {[%clk 0:00:07]}  Kg7 {[%clk 0:00:35]} 34. b5 {[%clk 0:00:05]}  Rxa3 {[%clk 0:00:34]} 35. b6 {[%clk 0:00:06]}  Ra8 {[%clk 0:00:23]} 36. b7 {[%clk 0:00:05]}  Rb8 {[%clk 0:00:23]} 37. Ba6 {[%clk 0:00:06]}  Bd7 {[%clk 0:00:22]} 38. Rc7 {[%clk 0:00:06]}  Bb5+ {[%clk 0:00:20]} 39. Bxb5 {[%clk 0:00:05]}  Kf6 {[%clk 0:00:21]} 40. Bc6 {[%clk 0:00:06]}  Ke5 {[%clk 0:00:21]} 41. Rc8 {[%clk 0:00:06]}  Rxb7 {[%clk 0:00:21]} 42. Bxb7 {[%clk 0:00:06]}  f5 {[%clk 0:00:22]} 43. exf5 {[%clk 0:00:06]}  g5 {[%clk 0:00:23]} 44. fxe6 {[%clk 0:00:05]}  Kxe6 {[%clk 0:00:23]} 45. Rh8 {[%clk 0:00:06]}  Kf5 {[%clk 0:00:24]} 46. Rxh5 {[%clk 0:00:06]}  Kg4 {[%clk 0:00:25]} 47. Rxg5+ {[%clk 0:00:07]} 1-0


[Site "https://www.chess.com"]

[Event "Titled Tuesday Blitz December 06 Late 2022"]
[White "Xiong, Jeffery"]
[Black "Eljanov, Pavel"]
[WhiteFideId "2047640"]
[BlackFideId "14102951"]
[WhiteElo "2726"]
[BlackElo "2598"]
[Result "1/2-1/2"]
[Round "07"]
[TimeControl "180+1"]
[Date "2022.12.06"]
[WhiteClock "0:00:31"]
[BlackClock "0:01:50"]

1. e4 {[%clk 0:03:00]}  e5 {[%clk 0:02:59]} 2. Nf3 {[%clk 0:03:00]}  Nc6 {[%clk 0:03:00]} 3. Nc3 {[%clk 0:03:01]}  Nf6 {[%clk 0:03:00]} 4. d4 {[%clk 0:03:02]}  exd4 {[%clk 0:02:59]} 5. Nxd4 {[%clk 0:03:03]}  Bb4 {[%clk 0:02:59]} 6. Nxc6 {[%clk 0:03:03]}  bxc6 {[%clk 0:02:59]} 7. Bd3 {[%clk 0:03:04]}  O-O {[%clk 0:02:59]} 8. O-O {[%clk 0:03:04]}  d5 {[%clk 0:02:59]} 9. exd5 {[%clk 0:03:05]}  cxd5 {[%clk 0:03:00]} 10. h3 {[%clk 0:03:06]}  c6 {[%clk 0:02:56]} 11. Qf3 {[%clk 0:03:05]}  h6 {[%clk 0:02:50]} 12. Bf4 {[%clk 0:03:06]}  Bd6 {[%clk 0:02:51]} 13. Rfe1 {[%clk 0:03:04]}  Bxf4 {[%clk 0:02:50]} 14. Qxf4 {[%clk 0:03:05]}  c5 {[%clk 0:02:49]} 15. Rad1 {[%clk 0:03:04]}  Bd7 {[%clk 0:02:40]} 16. Bf5 {[%clk 0:03:01]}  Bc6 {[%clk 0:02:38]} 17. Ne4 {[%clk 0:02:38]}  Nxe4 {[%clk 0:02:24]} 18. Bxe4 {[%clk 0:02:38]}  Qb8 {[%clk 0:02:23]} 19. Qxb8 {[%clk 0:02:18]}  Rfxb8 {[%clk 0:02:18]} 20. Bxd5 {[%clk 0:02:00]}  Bxd5 {[%clk 0:02:19]} 21. Rxd5 {[%clk 0:02:01]}  Rxb2 {[%clk 0:02:19]} 22. Rxc5 {[%clk 0:02:01]}  Rxa2 {[%clk 0:02:19]} 23. Rc7 {[%clk 0:01:58]}  a5 {[%clk 0:02:16]} 24. Ree7 {[%clk 0:01:29]}  Rf8 {[%clk 0:02:15]} 25. Rc4 {[%clk 0:01:21]}  a4 {[%clk 0:02:04]} 26. Ra7 {[%clk 0:01:21]}  a3 {[%clk 0:02:04]} 27. Rc3 {[%clk 0:01:16]}  Ra1+ {[%clk 0:02:03]} 28. Kh2 {[%clk 0:01:16]}  a2 {[%clk 0:02:03]} 29. Kg3 {[%clk 0:00:51]}  Rb8 {[%clk 0:01:56]} 30. Rb3 {[%clk 0:00:29]}  Rxb3+ {[%clk 0:01:50]} 31. cxb3 {[%clk 0:00:30]}  Rb1 {[%clk 0:01:50]} 32. Rxa2 {[%clk 0:00:30]}  Rxb3+ {[%clk 0:01:50]} 33. Kh2 {[%clk 0:00:31]} 1/2-1/2


[Site "https://www.chess.com"]